bitfinex-derivatives/quotes_BTCF0:USTF0_20250814
["timestamp","ask_amount","ask_price","bid_price","bid_amount"]
[1755141227934,2.48258386,123840.0,123830.0,0.03493959]
[1755141228431,2.48258386,123840.0,123830.0,0.01225959]
[1755141228635,1.72834386,123840.0,123830.0,0.01225959]
[1755141228836,1.94698761,123840.0,123830.0,0.11566669]
[1755141229637,1.19270761,123840.0,123830.0,0.11566669]
[1755141229838,1.94690761,123840.0,123830.0,0.11566669]
[1755141230540,1.19270761,123840.0,123830.0,0.11566669]
[1755141230739,1.94670761,123840.0,123830.0,0.11566669]
[1755141230940,1.72834386,123840.0,123830.0,0.11566669]
[1755141231140,2.48226386,123840.0,123830.0,0.11566669]
[1755141231941,0.49329076,123840.0,123830.0,0.21119669]
[1755141232439,0.13249076,123840.0,123830.0,0.21119669]
[1755141233635,0.14246076,123840.0,123830.0,0.21119669]
[1755141233835,0.71282701,123840.0,123830.0,0.21119669]
[1755141234034,0.14246076,123840.0,123830.0,0.21119669]
[1755141234239,0.67809701,123840.0,123830.0,0.21119669]
[1755141234545,0.14146076,123840.0,123830.0,0.21119669]
[1755141234739,0.14046076,123840.0,123830.0,0.21219669]
[1755141234947,0.14146076,123840.0,123830.0,0.21219669]
[1755141235645,0.14046076,123840.0,123830.0,0.21319669]
[1755141238047,0.17519076,123840.0,123830.0,0.21319669]
[1755141238847,0.18519076,123840.0,123830.0,0.21319669]
[1755141239246,0.22178076,123840.0,123830.0,0.21319669]
[1755141240644,0.02049076,123840.0,123830.0,0.74883294]
[1755141240942,0.38176096,123850.0,123840.0,0.1982506]
[1755141241143,0.38176096,123850.0,123840.0,0.21051019]
[1755141241541,0.05569096,123850.0,123840.0,0.21051019]
[1755141245355,0.02096096,123850.0,123840.0,0.21051019]
[1755141245949,0.02096096,123850.0,123840.0,0.57131019]
[1755141246753,0.02096096,123850.0,123840.0,1.34667019]
[1755141247957,0.02096096,123850.0,123840.0,1.34767019]
[1755141248645,0.02096096,123850.0,123840.0,1.88330644]
[1755141248848,0.02096096,123850.0,123840.0,1.10794644]
[1755141249149,0.02096096,123850.0,123840.0,1.88270644]
[1755141249551,0.02096096,123850.0,123840.0,1.88370644]
[1755141253056,0.02090081,123850.0,123840.0,2.04514394]
[1755141253954,1e-08,123850.0,123840.0,1.96751619]
[1755141254155,1e-08,123850.0,123840.0,2.74187619]
[1755141254354,0.44438,123880.0,123870.0,0.1276212]
[1755141254556,1.11001625,123880.0,123870.0,0.21049079]
[1755141255360,1.11201625,123880.0,123870.0,0.21049079]
[1755141256058,1.11401625,123880.0,123870.0,0.21049079]
[1755141257261,1.11101625,123880.0,123870.0,0.21049079]
[1755141257561,1.11301625,123880.0,123870.0,0.21049079]
[1755141257860,0.57738,123880.0,123870.0,0.21049079]
[1755141258159,0.44538,123880.0,123870.0,0.74612704]
[1755141258561,0.44538,123880.0,123870.0,0.21049079]
[1755141258753,0.44538,123880.0,123870.0,1.10692704]
[1755141258754,0.001,123880.0,123870.0,1.10692704]
[1755141259165,0.44322601,123890.0,123870.0,1.26832564]
[1755141259364,0.09200601,123890.0,123880.0,0.1982246]
[1755141259555,0.11391601,123890.0,123880.0,0.21048419]
[1755141259959,0.11659601,123890.0,123880.0,0.21048419]
[1755141260974,0.11391601,123890.0,123880.0,0.21048419]
[1755141261266,0.11391601,123890.0,123880.0,0.57128419]
[1755141261462,0.09923601,123890.0,123880.0,0.57128419]
[1755141261659,0.09923601,123890.0,123880.0,1.34680419]
[1755141261861,0.03301601,123890.0,123880.0,1.88244044]
[1755141262061,1.0103757,123900.0,123880.0,2.04382594]
[1755141262268,0.62890945,123900.0,123890.0,0.1982181]
[1755141262468,1.1645457,123900.0,123890.0,0.21047769]
[1755141262670,0.42532945,123900.0,123890.0,0.21047769]
[1755141262876,0.50890945,123900.0,123890.0,0.21047769]
[1755141263975,0.50890945,123900.0,123890.0,0.21147769]
[1755141264575,0.14810945,123900.0,123890.0,0.21147769]
[1755141264776,0.50890945,123900.0,123890.0,0.21147769]
[1755141265076,1.0445457,123900.0,123890.0,0.21147769]
[1755141265280,1.07295959,123900.0,123890.0,0.21147769]
[1755141265577,0.53732334,123900.0,123890.0,0.21147769]
[1755141266278,0.55806214,123900.0,123890.0,0.21147769]
[1755141269881,1.14537839,123900.0,123890.0,0.13359769]
[1755141270077,1.09537839,123900.0,123890.0,0.11747769]
[1755141270279,1.86821839,123900.0,123890.0,0.11747769]
[1755141271083,1.86821839,123900.0,123890.0,0.13284769]
[1755141271682,1.86921839,123900.0,123890.0,0.13184769]
[1755141272379,1.91921839,123900.0,123890.0,0.11647769]
[1755141274283,1.88921839,123900.0,123890.0,0.11647769]
[1755141274986,1.86921839,123900.0,123890.0,0.11647769]
[1755141275378,1.88921839,123900.0,123890.0,0.11647769]
[1755141276078,1.88921839,123900.0,123890.0,0.09294769]
[1755141276285,1.89121839,123900.0,123890.0,0.11647769]
[1755141277079,1.89021839,123900.0,123890.0,0.11647769]
[1755141278387,0.55955214,123900.0,123890.0,0.21063769]
[1755141278686,1.32955214,123900.0,123890.0,0.21063769]
[1755141279184,1.34955214,123900.0,123890.0,0.21063769]
[1755141279379,1.34935214,123900.0,123890.0,0.21063769]
[1755141279789,1.86498839,123900.0,123890.0,0.21063769]
[1755141279991,1.88498839,123900.0,123890.0,0.21063769]
[1755141280180,1.86666839,123900.0,123890.0,0.21063769]
[1755141280379,1.86566839,123900.0,123890.0,0.21063769]
[1755141280585,1.86566839,123900.0,123890.0,0.21099685]
[1755141280785,1.97566839,123900.0,123890.0,0.21099685]
[1755141280985,1.97398839,123900.0,123890.0,0.21099685]
[1755141281282,1.88398839,123900.0,123890.0,0.1983781]
[1755141281586,1.88398839,123900.0,123890.0,0.21099701]
[1755141281786,1.86298839,123900.0,123890.0,0.21099701]
[1755141281977,1.86298839,123900.0,123890.0,0.21199701]
[1755141282179,1.86298839,123900.0,123890.0,0.21299701]
[1755141283780,1.86298839,123900.0,123890.0,0.21299691]
[1755141285086,1.86466839,123900.0,123890.0,0.21299691]
[1755141285587,1.86266839,123900.0,123890.0,0.21299691]
[1755141286583,1.86266839,123900.0,123890.0,0.21299696]
[1755141287082,1.11486839,123900.0,123890.0,0.11883696]
[1755141287286,1.88218839,123900.0,123890.0,0.09530696]
[1755141287487,1.96286999,123900.0,123890.0,0.09530696]
[1755141288389,1.96286999,123900.0,123890.0,0.11883696]
[1755141288589,1.96386999,123900.0,123890.0,0.11783696]
[1755141288787,1.96386999,123900.0,123890.0,0.09430696]
[1755141288989,1.96334999,123900.0,123890.0,0.09430696]
[1755141289288,1.96434999,123900.0,123890.0,0.09430696]
[1755141289689,1.96434999,123900.0,123890.0,0.09430747]
[1755141291592,1.96234999,123900.0,123890.0,0.09430747]
[1755141291887,1.96334999,123900.0,123890.0,0.09430747]
[1755141292381,1.96334999,123900.0,123890.0,0.09330747]
[1755141292584,1.96434999,123900.0,123890.0,0.09312404]
[1755141294192,2.02232186,123900.0,123890.0,0.09312404]
[1755141294888,1.48668561,123900.0,123890.0,0.09312404]
[1755141295090,2.02232186,123900.0,123890.0,0.09312404]
[1755141296293,2.00158306,123900.0,123890.0,0.09312404]
[1755141296493,2.02242176,123900.0,123890.0,0.09312404]
[1755141296692,2.02242176,123900.0,123890.0,0.11676404]
[1755141298390,2.02242176,123900.0,123890.0,0.03607594]
[1755141298595,2.02242176,123900.0,123890.0,0.01243594]
[1755141298596,1.96192989,123900.0,123890.0,0.01243594]
[1755141299090,1.96152989,123900.0,123890.0,0.01243594]
[1755141300495,1.19764989,123900.0,123890.0,0.01243594]
[1755141300794,2.01898176,123900.0,123890.0,0.01243594]
[1755141301596,1.96100989,123900.0,123890.0,0.01243594]
[1755141305200,1.96100989,123900.0,123890.0,0.03607594]
[1755141305394,1.95976989,123900.0,123890.0,0.11676414]
[1755141305897,1.96612989,123900.0,123890.0,0.03607594]
[1755141306096,1.19764989,123900.0,123890.0,0.03607594]
[1755141306299,1.96604989,123900.0,123890.0,0.11676404]
[1755141308804,2.63468154,123900.0,123890.0,0.11676404]
[1755141311604,2.63468154,123900.0,123890.0,0.03607594]
[1755141313195,2.63468154,123900.0,123890.0,0.01243594]
[1755141313405,2.63468154,123900.0,123890.0,0.03607594]
[1755141317105,2.63468154,123900.0,123890.0,0.01243594]
[1755141317700,2.63468154,123900.0,123890.0,0.03607594]
[1755141319100,2.63468154,123900.0,123890.0,0.11676404]
[1755141319803,2.63468154,123900.0,123890.0,0.03607594]
[1755141323296,2.63468154,123900.0,123890.0,0.11676394]
[1755141323807,2.63468154,123900.0,123890.0,0.03607594]
[1755141329308,2.63368154,123900.0,123890.0,0.03607594]
[1755141329504,2.63468154,123900.0,123890.0,0.03607594]
[1755141330204,1.86528154,123900.0,123890.0,0.03607594]
[1755141330508,2.62808154,123900.0,123890.0,0.03607594]
[1755141330710,2.62708154,123900.0,123890.0,0.03607594]
[1755141330903,2.62808154,123900.0,123890.0,0.03607594]
[1755141333004,1.86628154,123900.0,123890.0,0.02364]
[1755141333205,2.62792154,123900.0,123890.0,0.03600738]
[1755141333814,1.86460154,123900.0,123890.0,0.03600738]
[1755141334020,2.62780154,123900.0,123890.0,0.11667738]
[1755141334211,2.62612154,123900.0,123890.0,0.21091548]
[1755141334711,1.86460154,123900.0,123890.0,0.21091548]
[1755141335011,2.71608154,123900.0,123890.0,0.21091548]
[1755141335211,2.71776154,123900.0,123890.0,0.21091548]
[1755141335416,2.71676154,123900.0,123890.0,0.21091548]
[1755141335599,0.1614006,123880.0,123860.0,0.3608]
[1755141335806,0.04578,123860.0,123850.0,0.2895284]
[1755141336001,2.00933025,123860.0,123850.0,0.1281004]
[1755141336311,0.09436,123840.0,123830.0,0.2088356]
[1755141336616,2.4414666,123840.0,123830.0,0.2223856]
[1755141336811,2.4593366,123840.0,123830.0,0.2223856]
[1755141337107,0.09436,123830.0,123820.0,0.222405]
[1755141337312,1.07813265,123830.0,123820.0,0.222405]
[1755141337611,1.83961265,123830.0,123820.0,0.246805]
[1755141337910,1.83961265,123830.0,123820.0,0.280085]
[1755141337911,1.83945265,123830.0,123820.0,0.280085]
[1755141338108,1.50308313,123830.0,123820.0,0.280085]
[1755141338512,1.43888313,123830.0,123820.0,0.280085]
[1755141338716,1.37240855,123830.0,123820.0,0.280085]
[1755141339013,2.90638855,123830.0,123820.0,0.280085]
[1755141339401,2.92098855,123830.0,123820.0,0.281085]
[1755141339813,2.98705901,123830.0,123820.0,0.281085]
[1755141340212,2.98805901,123830.0,123820.0,0.281085]
[1755141341110,2.98705901,123830.0,123820.0,0.283085]
[1755141341311,2.58653901,123830.0,123820.0,0.283085]
[1755141341615,3.36540901,123830.0,123820.0,0.283085]
[1755141342319,3.32670031,123830.0,123820.0,0.283085]
[1755141342710,2.20490031,123830.0,123820.0,0.283085]
[1755141342910,2.96574031,123830.0,123820.0,0.283085]
[1755141343509,2.96574031,123830.0,123820.0,0.643885]
[1755141343715,0.06607046,123830.0,123820.0,1.17954437]
[1755141343906,1.01164455,123850.0,123840.0,0.1281105]
[1755141344112,1.01164455,123850.0,123840.0,0.5601405]
[1755141344113,0.96122518,123850.0,123840.0,0.5601405]
[1755141344310,0.88158518,123850.0,123840.0,0.5601405]
[1755141344512,0.78158518,123850.0,123840.0,0.5601405]
[1755141345208,0.76176,123850.0,123840.0,0.5601405]
[1755141345612,0.001,123850.0,123840.0,0.57790233]
[1755141345813,0.001,123850.0,123840.0,1.1135617]
[1755141346311,2.81252833,123860.0,123840.0,1.274999]
[1755141346514,0.001,123850.0,123840.0,0.66810963]
[1755141346904,0.001,123850.0,123840.0,1.203769]
[1755141347108,0.001,123850.0,123840.0,0.73933963]
[1755141347617,0.001,123850.0,123840.0,0.74133963]
[1755141347913,0.001,123850.0,123840.0,0.75345325]
[1755141348110,0.77634896,123860.0,123840.0,0.75345325]
[1755141348111,0.01622896,123860.0,123850.0,0.199334]
[1755141348306,0.77634896,123860.0,123850.0,0.21144762]
[1755141348712,0.03745304,123860.0,123850.0,0.21144762]
[1755141348914,0.57311241,123860.0,123850.0,0.21144762]
[1755141349114,0.04648304,123860.0,123850.0,0.21144762]
[1755141349324,0.01622896,123860.0,123850.0,1.10790699]
[1755141349711,0.03745306,123860.0,123850.0,0.57224762]
[1755141349917,0.05910683,123860.0,123850.0,0.57224762]
[1755141350111,0.6249262,123860.0,123850.0,0.57224762]
[1755141350312,0.6891262,123860.0,123850.0,0.57224762]
[1755141351019,0.15346683,123860.0,123850.0,0.57424762]
[1755141351526,0.6891262,123860.0,123850.0,0.57424762]
[1755141351724,0.12161787,123860.0,123850.0,0.562134]
[1755141351917,0.10701787,123860.0,123850.0,0.562134]
[1755141352414,0.10701787,123860.0,123850.0,1.26027337]
[1755141352415,0.0212241,123860.0,123850.0,1.26027337]
[1755141352624,2.05688584,123870.0,123860.0,0.1993275]
[1755141352916,2.12643275,123870.0,123860.0,0.2175095]
[1755141354118,0.1941175,123860.0,123850.0,0.245138]
[1755141354316,2.00248334,123860.0,123850.0,0.243138]
[1755141354624,2.00308334,123860.0,123850.0,0.269978]
[1755141354929,2.00308334,123860.0,123850.0,0.271978]
[1755141355127,3.50308334,123860.0,123850.0,0.271978]
[1755141355328,3.50308334,123860.0,123850.0,0.268978]
[1755141355627,3.50308334,123860.0,123850.0,0.242138]
[1755141355817,3.50308334,123860.0,123850.0,0.161424]
[1755141356014,0.11341,123850.0,123840.0,0.2421535]
[1755141356322,0.0807205,123840.0,123830.0,0.2421741]
[1755141356526,1.91225584,123840.0,123830.0,0.2421741]
[1755141356823,1.91217584,123840.0,123830.0,0.2670141]
[1755141357823,1.15109584,123840.0,123830.0,0.2670141]
[1755141358023,1.91209584,123840.0,123830.0,0.2670141]
[1755141358320,1.37643647,123840.0,123830.0,0.2670141]
[1755141358522,1.91209584,123840.0,123830.0,0.2680141]
[1755141358723,1.91209584,123840.0,123830.0,0.2710141]
[1755141359314,1.91209584,123840.0,123830.0,0.2835841]
[1755141359514,1.53342584,123840.0,123830.0,0.3658741]
[1755141360316,0.77242584,123840.0,123830.0,0.3658741]
[1755141360517,0.86292647,123840.0,123830.0,0.3658741]
[1755141360719,0.08134,123840.0,123830.0,0.3658741]
[1755141360918,0.09554,123840.0,123830.0,0.90153347]
[1755141361114,0.09554,123840.0,123830.0,0.3658741]
[1755141361527,0.09554,123840.0,123830.0,0.7266741]
[1755141362416,0.03172,123840.0,123830.0,0.7266741]
[1755141363328,0.03172,123840.0,123830.0,1.26233347]
[1755141363727,1.35980108,123850.0,123840.0,0.1283805]
[1755141363923,1.02335939,123850.0,123840.0,0.2014205]
[1755141364728,1.55901876,123850.0,123840.0,0.2014205]
[1755141365123,1.02335939,123850.0,123840.0,0.2014205]
[1755141365520,1.02267939,123850.0,123840.0,0.2024205]
[1755141365925,1.02267939,123850.0,123840.0,1.11525754]
[1755141365926,0.03749939,123850.0,123840.0,1.11525754]
[1755141366228,0.68656876,123850.0,123840.0,0.57959817]
[1755141366427,0.68656876,123850.0,123840.0,0.21879817]
[1755141368328,1.04736876,123850.0,123840.0,0.17059817]
[1755141368543,0.68656876,123850.0,123840.0,0.13850817]
[1755141368728,1.44508876,123850.0,123840.0,0.12293817]
[1755141369132,1.44508876,123850.0,123840.0,0.20420817]
[1755141369534,0.68656876,123850.0,123840.0,0.20420817]
[1755141369734,1.44496876,123850.0,123840.0,0.20420817]
[1755141370034,1.80576876,123850.0,123840.0,0.12293817]
[1755141370435,1.81600876,123850.0,123840.0,0.12193817]
[1755141370837,1.81600876,123850.0,123840.0,0.09709817]
[1755141371037,1.89672276,123850.0,123840.0,0.09709817]
[1755141371436,1.81600876,123850.0,123840.0,0.09709817]
[1755141371929,1.28134939,123850.0,123840.0,0.09709817]
[1755141372126,1.81700876,123850.0,123840.0,0.09709817]
[1755141372533,1.81700876,123850.0,123840.0,0.09809817]
[1755141372737,1.81600876,123850.0,123840.0,0.09809817]
[1755141374038,1.28034939,123850.0,123840.0,0.09809817]
[1755141374243,1.81600876,123850.0,123840.0,0.12293817]
[1755141374443,1.05736876,123850.0,123840.0,0.12293817]
[1755141374643,1.81980876,123850.0,123840.0,0.12293817]
[1755141375246,1.81980876,123850.0,123840.0,0.09809817]
[1755141375946,1.81980876,123850.0,123840.0,0.12293817]
[1755141377548,1.05736876,123850.0,123840.0,0.12293817]
[1755141377733,0.16090939,123850.0,123840.0,0.21879817]
[1755141377940,0.14303939,123850.0,123840.0,0.21879817]
[1755141378234,0.12677768,123850.0,123840.0,0.21879817]
[1755141379041,0.11677768,123850.0,123840.0,0.21879817]
[1755141379351,0.87881768,123850.0,123840.0,0.21879817]
[1755141379551,0.87869768,123850.0,123840.0,0.21879817]
[1755141380346,0.02123768,123850.0,123840.0,0.57959817]
[1755141381251,0.02123768,123850.0,123840.0,1.11525754]
[1755141381447,0.02123768,123850.0,123840.0,0.57959817]
[1755141381649,0.03111768,123850.0,123840.0,0.57959817]
[1755141382348,0.06447768,123850.0,123840.0,0.21879817]
[1755141382554,0.10051768,123850.0,123840.0,0.21879817]
[1755141383454,0.18123168,123850.0,123840.0,0.21879817]
[1755141383951,0.55886168,123850.0,123840.0,0.21879817]
[1755141384144,1.11239105,123850.0,123840.0,0.20420817]
[1755141384343,1.14239105,123850.0,123840.0,0.01737767]
[1755141384554,1.92105361,123850.0,123840.0,0.01737767]
[1755141384754,1.92113361,123850.0,123840.0,0.01737767]
[1755141385053,1.92105361,123850.0,123840.0,0.01737767]
[1755141385250,1.92105361,123850.0,123840.0,0.04192767]
[1755141385447,1.16033361,123850.0,123840.0,0.12264817]
[1755141385650,1.16033361,123850.0,123840.0,0.17017817]
[1755141385651,1.92205361,123850.0,123840.0,0.17017817]
[1755141385851,1.16133361,123850.0,123840.0,0.08945767]
[1755141386158,1.92201361,123850.0,123840.0,0.04192767]
[1755141386347,1.92209361,123850.0,123840.0,0.01737767]
[1755141386654,1.16133361,123850.0,123840.0,0.001]
[1755141386851,1.92189361,123850.0,123840.0,0.001]
[1755141387157,0.194127,123830.0,123820.0,0.2659714]
[1755141387355,2.28111955,123830.0,123820.0,0.08073]
[1755141387650,0.1941336,123820.0,123810.0,0.28483985]
[1755141387857,1.11183065,123820.0,123810.0,0.28483985]
[1755141388153,1.11183065,123820.0,123810.0,0.30023985]
[1755141388356,1.87207065,123820.0,123810.0,0.33236985]
[1755141388557,1.87207065,123820.0,123810.0,0.37942985]
[1755141389655,1.87207065,123820.0,123810.0,0.29869305]
[1755141389854,1.87207065,123820.0,123810.0,0.28406305]
[1755141390448,1.87207065,123820.0,123810.0,0.28506305]
[1755141390643,1.23780768,123820.0,123810.0,0.25293305]
[1755141390958,1.23780768,123820.0,123810.0,0.29969305]
[1755141391255,1.31854118,123820.0,123810.0,0.29969305]
[1755141391647,1.23780768,123820.0,123810.0,0.29969305]
[1755141392054,1.31854128,123820.0,123810.0,0.29969305]
[1755141392449,1.33641128,123820.0,123810.0,0.29969305]
[1755141392958,1.87207065,123820.0,123810.0,0.29969305]
[1755141394560,1.87207065,123820.0,123810.0,0.1062901]
[1755141394762,1.87207065,123820.0,123810.0,0.122377]
[1755141394958,1.88207065,123820.0,123810.0,0.122377]
[1755141395154,1.12183065,123820.0,123810.0,0.097827]
[1755141395464,1.88107065,123820.0,123810.0,0.0170869]
[1755141395662,1.12183065,123820.0,123810.0,0.0170869]
[1755141395863,1.88103065,123820.0,123810.0,0.0170869]
[1755141397870,1.88103065,123820.0,123810.0,0.0160869]
[1755141398167,1.88103065,123820.0,123790.0,0.04063441]
[1755141398168,0.1651266,123800.0,123790.0,0.04063441]
[1755141398372,1.84214156,123800.0,123790.0,0.04063441]
[1755141398557,1.84190156,123800.0,123790.0,0.04063441]
[1755141399162,2.20270156,123800.0,123790.0,0.04063441]
[1755141399368,2.20270156,123800.0,123790.0,0.04163441]
[1755141399866,2.20310156,123800.0,123790.0,0.12238411]
[1755141400161,2.21310156,123800.0,123790.0,0.12238411]
[1755141400469,1.44398156,123800.0,123790.0,0.12238411]
[1755141400670,2.20394156,123800.0,123790.0,0.12238411]
[1755141400972,2.22569082,123800.0,123790.0,0.12238411]
[1755141401174,2.22569082,123800.0,123790.0,0.04163441]
[1755141401575,2.23569082,123800.0,123790.0,0.04163441]
[1755141401774,2.23569082,123800.0,123790.0,0.04263441]
[1755141401975,2.22569082,123800.0,123790.0,0.04263441]
[1755141402170,2.23569082,123800.0,123790.0,0.04263441]
[1755141402570,2.22569082,123800.0,123790.0,0.04263441]
[1755141402776,2.22569082,123800.0,123790.0,0.12338411]
[1755141403074,2.22569082,123800.0,123790.0,0.04263441]
[1755141403783,2.23569082,123800.0,123790.0,0.04263441]
[1755141403974,1.47573082,123800.0,123790.0,0.04263441]
[1755141404171,2.77055019,123800.0,123790.0,0.04263441]
[1755141404374,2.23489082,123800.0,123790.0,0.04263441]
[1755141405286,1.80023145,123800.0,123790.0,0.04163441]
[1755141405572,2.33589082,123800.0,123790.0,0.04063441]
[1755141405781,1.80023145,123800.0,123790.0,0.04063441]
[1755141406071,2.33489082,123800.0,123790.0,0.04063441]
[1755141406467,1.57573082,123800.0,123790.0,0.04063441]
[1755141406665,2.33485082,123800.0,123790.0,0.04063441]
[1755141408776,1.79919145,123800.0,123790.0,0.04063441]
[1755141408976,2.33485082,123800.0,123790.0,0.04063441]
[1755141410080,1.79919145,123800.0,123790.0,0.04063441]
[1755141410281,2.33485082,123800.0,123790.0,0.04063441]
[1755141413581,1.79919145,123800.0,123790.0,0.04063441]
[1755141413783,2.33485082,123800.0,123790.0,0.04063441]
[1755141416883,1.79919145,123800.0,123790.0,0.04063441]
[1755141417186,2.33485082,123800.0,123790.0,0.04063441]
[1755141417687,1.79919145,123800.0,123790.0,0.04063441]
[1755141417886,2.33485082,123800.0,123790.0,0.04063441]
[1755141418287,2.87051019,123800.0,123790.0,0.04063441]
[1755141419088,2.33485082,123800.0,123790.0,0.04063441]
[1755141420085,2.33485082,123800.0,123790.0,0.01608441]
[1755141420691,2.33485082,123800.0,123790.0,0.04006441]
[1755141421691,2.11139019,123800.0,123790.0,0.01608441]
[1755141421993,0.1636398,123790.0,123780.0,0.02398]
[1755141422186,1.19169476,123790.0,123780.0,0.02398]
[1755141422585,1.19169476,123790.0,123770.0,0.0166063]
[1755141422586,0.1618664,123780.0,123770.0,0.0166063]
[1755141422791,1.94030136,123780.0,123770.0,0.0405863]
[1755141423293,1.95862928,123780.0,123770.0,0.0405863]
[1755141424892,1.95862928,123780.0,123770.0,0.0415863]
[1755141425097,1.95886928,123780.0,123770.0,0.1223493]
[1755141425395,1.95886928,123780.0,123770.0,0.0567663]
[1755141425582,1.95886928,123780.0,123770.0,0.0882863]
[1755141426403,1.95886928,123780.0,123770.0,0.0892863]
[1755141426897,1.20002928,123780.0,123770.0,0.0892863]
[1755141427197,1.95846928,123780.0,123770.0,0.0892863]
[1755141427799,1.95846928,123780.0,123770.0,0.0577663]
[1755141429395,1.95770928,123780.0,123770.0,0.0577663]
[1755141430296,1.95846928,123780.0,123770.0,0.0577663]
[1755141432702,1.20002928,123780.0,123770.0,0.0186063]
[1755141432903,1.95854928,123780.0,123770.0,0.0425863]
[1755141433097,1.20002928,123780.0,123770.0,0.0425863]
[1755141433301,1.42280991,123780.0,123770.0,0.0425863]
[1755141433604,1.95846928,123780.0,123770.0,0.0425863]
[1755141434302,1.95846928,123780.0,123770.0,0.0415863]
[1755141434801,1.95846928,123780.0,123770.0,0.0405863]
[1755141436595,0.64826881,123780.0,123770.0,0.2008982]
[1755141436803,1.95620818,123780.0,123770.0,0.2154582]
[1755141437004,1.20002818,123780.0,123770.0,0.1703782]
[1755141437300,1.95770818,123780.0,123770.0,0.0425863]
[1755141437499,1.95770818,123780.0,123770.0,0.0186063]
[1755141437804,1.95754818,123780.0,123770.0,0.0186063]
[1755141438197,0.66436881,123780.0,123770.0,0.0425863]
[1755141438499,1.20002818,123780.0,123770.0,0.1233485]
[1755141438700,1.95738818,123780.0,123770.0,0.1223485]
[1755141438900,1.95838818,123780.0,123770.0,0.1223485]
[1755141439201,1.20102818,123780.0,123770.0,0.1223485]
[1755141439402,1.87771288,123780.0,123770.0,0.1375285]
[1755141439604,1.87771288,123780.0,123770.0,0.1690485]
[1755141439806,1.87593288,123780.0,123770.0,0.2164585]
[1755141440199,1.87605288,123780.0,123770.0,0.2164585]
[1755141440401,1.87505288,123780.0,123770.0,0.2174585]
[1755141440908,1.87505288,123780.0,123770.0,0.2164585]
[1755141441403,1.87505288,123780.0,123770.0,0.23276118]
[1755141441805,1.87505288,123780.0,123770.0,0.23376118]
[1755141443502,1.87683288,123780.0,123770.0,0.23376118]
[1755141444008,1.95758878,123780.0,123770.0,0.15299898]
[1755141444693,1.95758878,123780.0,123770.0,0.13843898]
[1755141445705,1.20002878,123780.0,123770.0,0.13843898]
[1755141445906,1.95734878,123780.0,123770.0,0.13843898]
[1755141446205,1.95734878,123780.0,123770.0,0.15205898]
[1755141448007,1.95734878,123780.0,123770.0,0.23282148]
[1755141448203,1.95734878,123780.0,123770.0,0.15205898]
[1755141448803,1.95734878,123780.0,123770.0,0.13843898]
[1755141449007,1.20002878,123780.0,123770.0,0.03490898]
[1755141449312,1.20002878,123780.0,123750.0,0.1050855]
[1755141449313,0.161513,123760.0,123750.0,0.1050855]
[1755141449503,1.81529237,123760.0,123750.0,0.1050855]
[1755141449704,1.81529237,123760.0,123750.0,0.02431]
[1755141449906,1.63363174,123760.0,123750.0,0.02431]
[1755141450206,1.81529237,123760.0,123750.0,0.02431]
[1755141450706,1.59363174,123760.0,123750.0,0.1050859]
[1755141451006,2.35095174,123760.0,123750.0,0.1203759]
[1755141451204,1.81529237,123760.0,123750.0,0.1213759]
[1755141451412,1.81529237,123760.0,123750.0,0.1562159]
[1755141451713,1.83688163,123760.0,123750.0,0.2015159]
[1755141452106,1.83688163,123760.0,123750.0,0.02631]
[1755141452107,1.11956163,123760.0,123750.0,0.02631]
[1755141452307,1.11956163,123760.0,123750.0,0.1070859]
[1755141452512,1.83684163,123760.0,123750.0,0.1223759]
[1755141452709,1.83684163,123760.0,123750.0,0.1572159]
[1755141453213,1.90064285,123760.0,123750.0,0.1572159]
[1755141453814,1.90064285,123760.0,123750.0,0.1223759]
[1755141454014,1.81987345,123760.0,123750.0,0.1223759]
[1755141454220,1.81987345,123760.0,123750.0,0.1791859]
[1755141454605,1.90064285,123760.0,123750.0,0.1791859]
[1755141455316,1.90068285,123760.0,123750.0,0.1791859]
[1755141456317,1.95068285,123760.0,123750.0,0.1791859]
[1755141456917,1.33425408,123760.0,123750.0,0.1791859]
[1755141457117,1.81991345,123760.0,123750.0,0.1791859]
[1755141457410,1.86991345,123760.0,123750.0,0.1791859]
[1755141457615,1.95068285,123760.0,123750.0,0.1791859]
[1755141457817,1.95068285,123760.0,123750.0,0.1443459]
[1755141458616,1.86991345,123760.0,123750.0,0.1443459]
[1755141458817,1.95068275,123760.0,123750.0,0.1443459]
[1755141459119,1.86991345,123760.0,123750.0,0.1443459]
[1755141459515,1.81991345,123760.0,123750.0,0.1443459]
[1755141459814,1.86991345,123760.0,123750.0,0.1443459]
[1755141460015,1.95068275,123760.0,123750.0,0.1070859]
[1755141460215,1.95068275,123760.0,123750.0,0.1223759]
[1755141460919,1.81991345,123760.0,123750.0,0.1223759]
[1755141462620,1.81991345,123760.0,123750.0,0.1572159]
[1755141463122,1.81991345,123760.0,123750.0,0.1223759]
[1755141465022,1.12259345,123760.0,123750.0,0.1070859]
[1755141465333,1.81987345,123760.0,123750.0,0.1070859]
[1755141465626,1.87987345,123760.0,123750.0,0.1070859]
[1755141466121,1.81987345,123760.0,123750.0,0.1070859]
[1755141466425,1.86987345,123760.0,123750.0,0.1070859]
[1755141467117,1.95064295,123760.0,123750.0,0.1070859]
[1755141467324,1.86987345,123760.0,123750.0,0.1070859]
[1755141468326,1.81987345,123760.0,123750.0,0.1070859]
[1755141469419,1.87987345,123760.0,123750.0,0.1070859]
[1755141469723,1.06259345,123760.0,123750.0,0.1070859]
[1755141470024,1.81983345,123760.0,123750.0,0.1070859]
[1755141470214,1.86983345,123760.0,123750.0,0.1070859]
[1755141470415,1.81983345,123760.0,123750.0,0.1070859]
[1755141470726,1.86983345,123760.0,123750.0,0.1070859]
[1755141470918,1.81983345,123760.0,123750.0,0.1070859]
[1755141471627,1.87983345,123760.0,123750.0,0.1070859]
[1755141472815,1.96060325,123760.0,123750.0,0.1070859]
[1755141473725,2.49626262,123760.0,123750.0,0.1070859]
[1755141474124,2.49626262,123760.0,123750.0,0.0827759]
[1755141474322,2.49622262,123760.0,123750.0,0.0827759]
[1755141474723,2.49622262,123760.0,123750.0,0.08284546]
[1755141476219,2.41545282,123760.0,123750.0,0.08284546]
[1755141476524,2.41541567,123760.0,123750.0,0.08284546]
[1755141476925,2.41541567,123760.0,123750.0,0.08184546]
[1755141477924,2.41541567,123760.0,123750.0,0.08284546]
[1755141478318,2.41541567,123760.0,123750.0,0.08184546]
[1755141478722,2.41541567,123760.0,123750.0,0.10538546]
[1755141479031,1.8797563,123760.0,123750.0,0.10538546]
[1755141479927,1.34409693,123760.0,123750.0,0.10538546]
[1755141480223,1.8797563,123760.0,123750.0,0.10638546]
[1755141480424,1.34409693,123760.0,123750.0,0.10638546]
[1755141480625,1.8797563,123760.0,123750.0,0.10638546]
[1755141481030,1.34409693,123760.0,123750.0,0.10638546]
[1755141481229,1.8797563,123760.0,123750.0,0.10638546]
[1755141482036,1.9605263,123760.0,123750.0,0.10638546]
[1755141482520,2.49618567,123760.0,123750.0,0.10638546]
[1755141483221,0.02369,123750.0,123740.0,0.24243653]
[1755141483418,1.90952168,123750.0,123740.0,0.24243653]